bitfinex/quotes_SOLUSD_20250216
["timestamp","ask_amount","ask_price","bid_price","bid_amount"]
[1739681156204,13.2449049,194.62,194.57,13.41184853]
[1739681156396,8.1067049,194.61,194.57,13.41184853]
[1739681156898,13.2449049,194.62,194.57,13.41184853]
[1739681157199,8.1067049,194.61,194.56,81.4]
[1739681157407,8.1067049,194.6,194.56,81.4]
[1739681157591,8.1067049,194.59,194.56,81.4]
[1739681157903,8.1067049,194.6,194.56,81.4]
[1739681159610,13.2456049,194.6,194.56,81.4]
[1739681160181,5.1389,194.6,194.56,81.4]
[1739681160391,8.1067049,194.61,194.56,81.4]
[1739681160698,13.2452049,194.61,194.56,81.4]
[1739681160897,8.1067049,194.6,194.56,81.4]
[1739681161071,13.2452049,194.61,194.56,81.4]
[1739681161276,8.1067049,194.6,194.56,81.4]
[1739681161791,8.1067049,194.58,194.56,81.4]
[1739681162099,8.1067049,194.58,194.54,0.063]
[1739681163081,13.2461049,194.58,194.54,0.063]
[1739681164101,8.1067049,194.59,194.54,0.063]
[1739681165098,13.2457049,194.59,194.54,0.063]
[1739681165400,8.1067049,194.59,194.54,0.063]
[1739681169305,8.1067049,194.6,194.54,0.063]
[1739681169488,13.2452049,194.61,194.55,8.1067049]
[1739681170501,82.1,194.6,194.55,13.2467049]
[1739681171001,82.1,194.6,194.56,13.41184853]
[1739681172608,82.1,194.6,194.56,18.55144853]
[1739681173906,82.1,194.6,194.56,26.65815343]
[1739681174806,82.1,194.6,194.56,18.55144853]
[1739681175910,82.1,194.6,194.56,26.65815343]
[1739681176210,82.1,194.6,194.57,8.1067049]
[1739681177115,82.1,194.6,194.56,18.55144853]
[1739681177116,82.1,194.6,194.59,8.1067049]
[1739681177308,82.1,194.6,194.59,21.51855343]
[1739681177514,82.1,194.6,194.59,13.41184853]
[1739681179293,82.1,194.6,194.59,18.55084853]
[1739681180002,82.1,194.6,194.59,13.41184853]
[1739681181102,82.1,194.6,194.59,18.55084853]
[1739681182424,82.1,194.64,194.59,18.55084853]
[1739681184321,90.2067049,194.64,194.59,18.55084853]
[1739681184512,90.2067049,194.64,194.59,13.41184853]
[1739681184513,8.1067049,194.63,194.59,13.41184853]
[1739681184811,90.2067049,194.64,194.59,13.41184853]
[1739681186228,95.3445049,194.64,194.59,13.41184853]
[1739681187326,90.2067049,194.64,194.59,13.41184853]
[1739681187500,90.2067049,194.64,194.59,18.55074853]
[1739681188010,90.2067049,194.64,194.59,13.41184853]
[1739681188425,90.2067049,194.64,194.59,18.55074853]
[1739681188724,90.2067049,194.64,194.59,13.41184853]
[1739681190130,82.1,194.64,194.59,13.41184853]
[1739681190706,82.1,194.64,194.6,13.41184853]
[1739681191125,82.1,194.64,194.6,21.51855343]
[1739681192024,82.1,194.64,194.6,26.65715343]
[1739681193629,82.1,194.64,194.6,18.55044853]
[1739681193836,82.1,194.64,194.6,13.41184853]
[1739681196438,82.1,194.64,194.6,5.1386]
[1739681198619,82.1,194.64,194.6,13.2453049]
[1739681200247,0.03,194.65,194.6,13.2453049]
[1739681200656,0.03,194.65,194.62,8.1067049]
[1739681200940,0.03,194.65,194.64,13.41184853]
[1739681202941,0.03,194.65,194.64,18.54944853]
[1739681206454,0.03,194.65,194.64,26.65615343]
[1739681208346,0.03,194.65,194.64,18.54944853]
[1739681210259,0.03,194.65,194.62,8.1067049]
[1739681210459,0.03,194.65,194.61,8.1067049]
[1739681210860,0.03,194.65,194.62,13.41184853]
[1739681211358,8.1367049,194.65,194.59,8.1067049]
[1739681211832,8.1367049,194.65,194.6,18.55054853]
[1739681213061,8.1367049,194.65,194.6,18.61354853]
[1739681213363,0.03,194.65,194.6,18.61354853]
[1739681213665,13.2741049,194.65,194.6,0.063]
[1739681215162,95.3741049,194.65,194.6,0.063]
[1739681218378,82.13,194.65,194.6,8.1697049]
[1739681219969,82.13,194.65,194.6,0.063]
[1739681221158,95.3741049,194.65,194.6,0.063]
[1739681221366,8.1067049,194.64,194.6,0.063]
[1739681222262,13.2444049,194.64,194.6,0.063]
[1739681224744,8.1067049,194.63,194.6,0.063]
[1739681225870,13.2448049,194.63,194.6,0.063]
[1739681227065,82.1,194.62,194.6,0.063]
[1739681227887,95.3451049,194.62,194.6,0.063]
[1739681228087,90.2067049,194.61,194.6,0.063]
[1739681230777,95.3451049,194.61,194.6,0.063]
[1739681232881,13.2451049,194.61,194.6,0.063]
[1739681236968,8.1067049,194.61,194.6,0.063]
[1739681238288,13.2449049,194.62,194.6,0.063]
[1739681240480,13.2443049,194.64,194.6,0.063]
[1739681240671,13.2741049,194.65,194.6,0.063]
[1739681240875,8.1067049,194.64,194.6,0.063]
[1739681242070,13.2444049,194.64,194.6,0.063]
[1739681242272,8.1067049,194.63,194.6,0.063]
[1739681244786,90.2067049,194.63,194.6,0.063]
[1739681244979,82.1,194.63,194.6,0.063]
[1739681247092,87.2379,194.63,194.6,0.063]
[1739681249708,95.3446049,194.63,194.6,0.063]
[1739681253711,87.2379,194.63,194.6,0.063]
[1739681255206,82.1,194.63,194.6,8.1697049]
[1739681255378,82.1,194.63,194.61,8.1067049]
[1739681256406,82.1,194.63,194.6,8.1697049]
[1739681257503,82.1,194.63,194.61,8.1067049]
[1739681259205,82.1,194.63,194.62,8.1067049]
[1739681259803,82.1,194.63,194.62,21.51855343]
[1739681259989,0.03,194.65,194.62,21.51855343]
[1739681260189,0.03,194.65,194.64,21.51855343]
[1739681261312,0.03,194.65,194.64,26.65615343]
[1739681263213,0.03,194.65,194.62,13.2448049]
[1739681263923,0.03,194.65,194.63,13.41184853]
[1739681264092,0.03,194.65,194.61,1.5796]
[1739681264293,0.03,194.65,194.61,13.41184853]
[1739681264795,8.1367049,194.65,194.61,13.41184853]
[1739681266418,0.03,194.65,194.61,13.41184853]
[1739681273607,0.03,194.65,194.61,21.51855343]
[1739681275512,0.03,194.65,194.61,26.65695343]
[1739681276725,0.03,194.65,194.6,8.1697049]
[1739681276926,0.03,194.65,194.6,5.2017]
[1739681277231,0.03,194.65,194.61,13.41184853]
[1739681278408,0.03,194.65,194.61,21.51855343]
[1739681279131,0.03,194.65,194.61,26.65695343]
[1739681279643,0.03,194.65,194.61,13.41184853]
[1739681279931,82.1,194.64,194.6,0.063]
[1739681280504,95.3445049,194.64,194.6,0.063]
[1739681280812,8.1067049,194.63,194.6,0.063]
[1739681281212,95.3445049,194.64,194.6,0.063]
[1739681282112,13.2448049,194.63,194.6,0.063]
[1739681282316,8.1067049,194.62,194.6,0.063]
[1739681283238,82.1,194.61,194.6,0.063]
[1739681291420,82.1,194.61,194.6,8.1697049]
[1739681291743,82.1,194.61,194.6,0.063]
[1739681293945,82.1,194.61,194.6,8.1697049]
[1739681295324,82.1,194.61,194.6,26.72025343]
[1739681298343,0.03,194.65,194.61,18.55004853]
[1739681298529,0.03,194.65,194.62,8.1067049]
[1739681298729,0.03,194.65,194.63,8.1067049]
[1739681298929,0.03,194.65,194.64,21.51855343]
[1739681303437,0.03,194.65,194.64,13.41184853]
[1739681303840,0.03,194.65,194.6,8.1697049]
[1739681304051,0.03,194.65,194.6,0.063]
[1739681304253,82.13,194.65,194.6,13.47484853]
[1739681305455,87.2675,194.65,194.6,13.47484853]
[1739681305750,82.1,194.64,194.6,0.063]
[1739681307252,8.1067049,194.62,194.6,0.063]
[1739681307749,90.2067049,194.63,194.6,0.063]
[1739681307948,82.1,194.63,194.6,0.063]
[1739681310160,82.1,194.62,194.6,0.063]
[1739681314646,82.1,194.62,194.61,8.1067049]
[1739681316063,82.1,194.64,194.61,8.1067049]
[1739681318661,82.1,194.64,194.61,13.2451049]
[1739681318957,0.03,194.65,194.63,8.1067049]
[1739681319658,0.03,194.65,194.61,13.2451049]
[1739681320043,0.03,194.65,194.62,8.1067049]
[1739681321944,0.03,194.65,194.62,13.2448049]
[1739681330649,0.03,194.65,194.63,8.1067049]
[1739681332049,0.03,194.65,194.63,13.2446049]
[1739681336570,0.03,194.65,194.64,8.1067049]
[1739681338678,0.03,194.65,194.64,13.2443049]
[1739681343486,0.03,194.65,194.64,26.65615343]
[1739681352625,0.03,194.65,194.64,26.71915343]
[1739681355324,0.0001,194.68,194.65,13.41184853]
[1739681355497,0.0001,194.68,194.67,21.51855343]
[1739681356721,0.0001,194.68,194.67,26.65535343]
[1739681366626,0.0001,194.68,194.67,13.41184853]
[1739681366827,0.0001,194.68,194.65,13.2440049]
[1739681367129,0.0001,194.68,194.65,5.1373]
[1739681368513,0.0001,194.68,194.65,13.2440049]
[1739681374534,0.0001,194.68,194.67,5.1368]
[1739681374837,0.0001,194.68,194.67,13.2435049]
[1739681379433,0.0001,194.68,194.67,26.65535343]
[1739681438203,0.0001,194.68,194.67,107.95535343]
[1739681448107,0.0001,194.68,194.67,108.95535343]
[1739681448810,0.0001,194.68,194.67,107.95535343]
[1739681453204,0.0001,194.68,194.67,94.71184853]
[1739681453407,0.0001,194.68,194.67,13.41184853]
[1739681456127,0.0001,194.68,194.65,81.403]
[1739681457690,0.0001,194.68,194.65,89.5097049]
[1739681460309,0.0001,194.68,194.67,8.1067049]
[1739681461819,0.0001,194.68,194.65,81.403]
[1739681465321,0.0001,194.68,194.65,13.47484853]
[1739681465617,0.0001,194.68,194.65,26.71875343]
[1739681465996,0.0001,194.68,194.66,8.1067049]
[1739681467034,0.0001,194.68,194.67,8.1067049]
[1739681467417,0.0001,194.68,194.67,21.51855343]
[1739681467615,0.0001,194.68,194.67,26.65535343]
[1739681472536,0.0001,194.68,194.67,13.41184853]
[1739681474821,0.0001,194.68,194.67,18.54864853]
[1739681475015,0.0001,194.68,194.67,26.65535343]
[1739681493322,0.0001,194.68,194.65,13.3068049]
[1739681493528,0.0001,194.68,194.65,0.063]
[1739681494448,0.0001,194.68,194.65,13.47484853]
[1739681502057,0.0001,194.68,194.65,21.58155343]
[1739681503759,0.0001,194.68,194.65,13.47484853]
[1739681506656,0.0001,194.68,194.65,8.1697049]
[1739681506862,0.0001,194.68,194.65,13.3071049]
[1739681522164,0.0001,194.68,194.65,5.2004]
[1739681522569,0.0001,194.68,194.65,0.063]
[1739681529572,0.0001,194.68,194.65,8.1697049]
[1739681530671,0.0001,194.68,194.65,13.3070049]
[1739681535681,0.0001,194.68,194.65,8.1697049]
[1739681541775,0.0001,194.68,194.65,13.3070049]
[1739681543393,0.0001,194.68,194.65,8.1697049]
[1739681543783,0.0001,194.68,194.65,0.063]
[1739681552287,0.0001,194.68,194.65,8.1697049]
[1739681553707,0.0001,194.68,194.65,13.3070049]
[1739681563902,0.0001,194.68,194.67,8.1067049]
[1739681568900,0.0001,194.68,194.67,13.2435049]
[1739681569606,0.0001,194.68,194.67,26.65535343]
[1739681582806,81.8824875,194.74,194.67,26.65535343]
[1739681583006,81.8824875,194.74,194.7,8.1067049]
[1739681584104,81.8824875,194.74,194.7,13.2427049]
[1739681586203,81.9124875,194.74,194.7,13.2427049]
[1739681586697,81.9124875,194.74,194.7,8.1067049]
[1739681587101,8.1067049,194.73,194.67,21.58155343]
[1739681587306,8.1067049,194.73,194.67,26.71835343]
[1739681588015,5.1355,194.72,194.67,21.58155343]
[1739681588891,90.0191924,194.74,194.68,8.1067049]
[1739681589504,81.9124875,194.74,194.68,8.1067049]
[1739681590214,81.9124875,194.74,194.68,13.2431049]
[1739681590820,87.0475875,194.74,194.68,13.2431049]
[1739681592609,81.8824875,194.73,194.68,13.2431049]
[1739681594621,81.8824875,194.73,194.69,8.1067049]
[1739681594821,81.8824875,194.73,194.68,13.2431049]
[1739681597529,81.9124875,194.73,194.68,13.2431049]
[1739681602543,81.9124875,194.73,194.69,8.1067049]
[1739681602745,81.9124875,194.73,194.69,13.2429049]
[1739681608135,81.9124875,194.73,194.71,8.1067049]
[1739681608340,0.03,194.73,194.71,8.1067049]
[1739681609040,0.03,194.73,194.7,8.1067049]
[1739681611418,0.03,194.73,194.7,13.2427049]
[1739681615227,0.03,194.73,194.71,8.1067049]
[1739681616836,0.03,194.73,194.71,13.2425049]
[1739681617542,0.03,194.73,194.7,8.1067049]
[1739681618348,0.03,194.73,194.69,21.51855343]
[1739681618848,0.03,194.73,194.7,13.2428049]
[1739681620629,0.03,194.73,194.71,8.1067049]
[1739681621753,0.03,194.73,194.71,13.2425049]
[1739681621927,0.03,194.73,194.71,5.1358]
[1739681625051,0.03,194.73,194.7,0.063]
[1739681625848,0.03,194.73,194.7,5.199]
[1739681628558,0.03,194.73,194.7,0.063]
[1739681643150,81.9124875,194.73,194.7,0.063]
[1739681644454,81.9124875,194.73,194.7,8.1697049]
[1739681644455,0.03,194.73,194.7,8.1697049]
[1739681644663,0.03,194.73,194.71,8.1067049]
[1739681645372,0.03,194.73,194.7,8.1697049]
[1739681646970,0.03,194.73,194.7,13.3055049]
[1739681668799,0.03,194.73,194.7,8.1697049]
[1739681671189,0.03,194.73,194.7,0.063]
[1739681671892,0.03,194.73,194.72,8.1067049]
[1739681673595,0.03,194.73,194.72,13.2422049]
[1739681675990,0.03,194.73,194.72,8.1067049]
[1739681682898,0.03,194.73,194.71,8.1067049]
[1739681690094,0.03,194.73,194.71,13.2424049]
[1739681693707,0.03,194.73,194.72,8.1067049]
[1739681697913,0.03,194.73,194.72,13.2422049]
[1739681699288,0.03,194.73,194.72,8.1067049]
[1739681700004,0.03,194.73,194.71,13.2424049]
[1739681700909,0.03,194.73,194.71,8.1067049]
[1739681701119,0.03,194.73,194.7,0.063]
[1739681702312,0.03,194.73,194.71,0.063]
[1739681707338,5.1653,194.73,194.71,0.063]
[1739681709705,0.03,194.73,194.71,0.063]
[1739681711332,81.9124875,194.73,194.71,0.063]
[1739681711913,81.9124875,194.73,194.71,8.1697049]
[1739681712094,81.9124875,194.73,194.72,8.1067049]
[1739681714023,0.03,194.73,194.72,13.2422049]
[1739681715922,0.03,194.73,194.72,8.1067049]
[1739681717222,0.03,194.73,194.71,0.063]
[1739681720426,87.0477875,194.73,194.71,0.063]
[1739681725222,81.9124875,194.73,194.71,0.063]
[1739681738838,81.9124875,194.73,194.71,8.1697049]
[1739681739726,81.9124875,194.73,194.71,13.3053049]
[1739681744039,0.03,194.73,194.71,13.3053049]
[1739681745926,0.03,194.73,194.71,5.1986]
[1739681748436,0.03,194.73,194.71,0.063]
[1739681753328,8.1367049,194.73,194.71,0.063]
[1739681755048,5.1355,194.72,194.71,0.063]
[1739681758340,81.9124875,194.73,194.71,0.063]
[1739681759645,87.0478875,194.73,194.71,0.063]
[1739681770360,13.2422049,194.72,194.71,0.063]
[1739681784470,13.2722049,194.72,194.71,0.063]
[1739681789073,5.1655,194.72,194.71,0.063]
[1739681790978,0.03,194.72,194.71,0.063]
[1739681793173,20.03,194.72,194.71,0.063]
[1739681795389,25.1655,194.72,194.71,0.063]
[1739681799476,0.03,194.72,194.71,0.063]
[1739681813201,8.1367049,194.72,194.71,0.063]
[1739681815187,13.2722049,194.72,194.71,0.063]
[1739681826111,5.1655,194.72,194.71,0.063]
[1739681828606,0.03,194.72,194.71,0.063]
[1739681830310,20.03,194.72,194.71,0.063]
[1739681834910,25.1655,194.72,194.71,0.063]
[1739681840309,0.03,194.72,194.71,0.063]
[1739681854923,0.03,194.72,194.71,8.1697049]
[1739681855813,0.03,194.72,194.71,13.3055049]
[1739681858535,0.03,194.72,194.71,0.063]
[1739681880457,115.3722049,194.72,194.71,0.063]
[1739681883686,107.2655,194.72,194.71,0.063]
[1739681889579,25.1655,194.72,194.71,0.063]
[1739681895214,33.2722049,194.72,194.71,0.063]
[1739681905716,34.2722049,194.72,194.71,0.063]
[1739681906010,1.0,194.71,194.7,0.063]
[1739681906304,55.94537303,194.71,194.7,0.0001]
[1739681908201,85.94537303,194.71,194.7,0.0001]
[1739681908380,91.08117303,194.71,194.7,0.0001]
[1739681910110,35.41184853,194.68,194.67,0.0001]
[1739681910285,43.51855343,194.68,194.67,0.0001]
[1739681910985,48.65515343,194.68,194.67,0.0001]
[1739681916511,46.65515343,194.68,194.67,0.0001]
[1739681917590,33.2433049,194.68,194.67,0.0001]
[1739681925933,33.2733049,194.68,194.67,0.0001]
[1739681928602,34.2733049,194.68,194.67,0.0001]
[1739681929137,35.2733049,194.68,194.67,0.0001]
[1739681929804,48.68515343,194.68,194.67,0.0001]
[1739681930005,26.1371,194.66,194.65,0.0001]
[1739681930215,34.2438049,194.66,194.65,0.0001]
[1739681937102,33.2438049,194.66,194.65,0.0001]
[1739681937306,34.2438049,194.66,194.65,0.0001]
[1739681940718,47.65565343,194.66,194.65,0.0001]
[1739681944619,46.65565343,194.66,194.65,0.0001]
[1739681949943,33.2438049,194.66,194.65,0.0001]
[1739681950643,34.2438049,194.66,194.65,0.0001]
[1739681960347,34.2738049,194.66,194.65,0.0001]
[1739681965651,33.2738049,194.66,194.65,0.0001]
[1739681980462,25.1671,194.66,194.65,0.0001]
[1739681986550,33.2738049,194.66,194.65,0.0001]
[1739682007971,35.2738049,194.66,194.65,0.0001]
[1739682008692,34.2738049,194.66,194.65,0.0001]
[1739682019533,47.68565343,194.66,194.65,0.0001]
[1739682020202,20.0,194.63,194.62,0.063]
[1739682020401,33.2446049,194.63,194.62,0.063]
[1739682024620,25.1379,194.63,194.62,0.063]
[1739682028016,5.1376,194.64,194.62,0.063]
[1739682028527,20.0,194.64,194.62,0.063]
[1739682028727,20.0,194.63,194.62,0.063]
[1739682029941,20.0,194.64,194.62,0.063]
[1739682030238,20.0,194.63,194.62,0.063]
[1739682030636,25.1377,194.64,194.62,0.063]
[1739682031930,20.0,194.64,194.62,0.063]
[1739682033130,25.1377,194.64,194.62,0.063]
[1739682042638,25.1677,194.64,194.62,0.063]
[1739682065841,33.2744049,194.64,194.62,0.063]
[1739682066043,8.1067049,194.63,194.62,0.063]
[1739682067569,13.2446049,194.63,194.62,0.063]
[1739682073362,28.65645343,194.63,194.62,0.0001]
[1739682073562,34.41184853,194.61,194.6,0.0001]
[1739682073769,74.94537303,194.61,194.6,0.0001]
[1739682074770,41.51855343,194.61,194.6,0.0001]
[1739682075274,47.65695343,194.61,194.6,0.0001]
[1739682077870,46.65695343,194.61,194.6,0.0001]
[1739682078172,47.65695343,194.61,194.6,0.0001]
[1739682084376,81.08377303,194.61,194.6,0.0001]
[1739682088081,111.08377303,194.61,194.6,0.0001]
[1739682092486,81.08377303,194.61,194.6,0.0001]
[1739682093986,14.41184853,194.57,194.56,0.063]
[1739682094198,22.51855343,194.57,194.56,0.0001]
[1739682095581,1.0,194.55,194.54,0.0001]
[1739682095768,1.0,194.52,194.51,0.063]
[1739682095968,22.51855343,194.52,194.51,0.063]
[1739682097680,13.2475049,194.52,194.51,0.063]
[1739682104914,27.65935343,194.52,194.51,0.063]
[1739682120484,13.2475049,194.52,194.51,0.063]
[1739682123404,13.2775049,194.52,194.51,0.063]
[1739682138423,5.1708,194.52,194.51,0.063]
[1739682138816,0.03,194.52,194.51,0.063]
[1739682139701,20.03,194.52,194.51,0.063]
[1739682142022,0.03,194.52,194.51,0.063]
[1739682163433,8.1367049,194.52,194.51,0.063]
[1739682164944,13.2775049,194.52,194.51,0.063]
[1739682165941,95.3775049,194.52,194.51,0.063]
[1739682171922,13.2775049,194.52,194.51,0.063]
[1739682187339,28.68935343,194.52,194.5,0.063]
[1739682187555,8.1067049,194.51,194.5,0.0001]
[1739682187849,104.61855343,194.51,194.5,0.0001]
[1739682188051,15.41184853,194.49,194.48,0.0001]
[1739682188262,20.0,194.47,194.45,0.063]
[1739682188463,90.2067049,194.46,194.45,0.063]
[1739682188958,95.3491049,194.46,194.45,0.063]
[1739682192960,13.2491049,194.46,194.45,0.063]
[1739682194147,5.1424,194.46,194.45,0.063]
[1739682194562,13.2491049,194.46,194.45,0.063]
[1739682218778,13.2491049,194.46,194.45,0.0001]
[1739682219078,27.66095343,194.46,194.45,0.0001]
[1739682220589,28.66095343,194.46,194.45,0.0001]
[1739682222391,58.66095343,194.46,194.45,0.0001]
[1739682228588,57.66095343,194.46,194.45,0.0001]
[1739682232182,58.66095343,194.46,194.45,0.0001]
[1739682232681,28.66095343,194.46,194.45,0.0001]
[1739682236795,58.66095343,194.46,194.45,0.0001]
[1739682237201,14.41184853,194.44,194.42,0.0001]
[1739682237402,20.0,194.4,194.36,1.5476]
[1739682237604,90.2067049,194.39,194.36,1.5476]
[1739682238905,5.1445,194.38,194.36,1.5476]
[1739682240686,87.2443,194.39,194.36,1.5476]
[1739682240881,82.1,194.39,194.36,9.6543049]
[1739682243311,25.1441,194.4,194.36,9.6543049]
[1739682245787,25.1441,194.4,194.36,1.5476]
[1739682247618,20.0,194.4,194.36,1.5476]
[1739682247910,5.1438,194.41,194.36,9.6543049]
[1739682252016,5.1438,194.41,194.36,9.7173049]
[1739682252507,5.1438,194.41,194.36,1.6106]
[1739682255415,87.2435,194.42,194.38,8.1067049]
[1739682255911,82.13,194.46,194.41,8.1067049]
[1739682256501,90.2367049,194.46,194.4,8.1067049]
[1739682257115,95.3791049,194.46,194.4,8.1067049]
[1739682264717,8.1067049,194.45,194.39,8.1067049]
[1739682267026,82.1,194.44,194.39,8.1067049]
[1739682267212,87.2432,194.44,194.4,8.1067049]
[1739682270328,82.1,194.44,194.4,8.1067049]
[1739682270628,82.1,194.44,194.43,8.1067049]
[1739682270802,0.03,194.46,194.43,8.1067049]
[1739682270999,0.03,194.46,194.45,8.1067049]
[1739682277841,0.03,194.46,194.43,8.1067049]
[1739682280332,0.03,194.46,194.44,8.1067049]
[1739682290063,0.03,194.46,194.42,13.2501049]
[1739682291362,0.03,194.46,194.43,8.1067049]
[1739682292464,0.03,194.46,194.41,9.6814049]
[1739682292636,0.03,194.46,194.41,8.1067049]
[1739682292962,8.1367049,194.46,194.4,8.1067049]
[1739682293740,8.1067049,194.45,194.39,8.1067049]
[1739682293957,28.1067049,194.45,194.39,8.1067049]
[1739682294457,33.2496049,194.45,194.39,8.1067049]
[1739682296871,87.2432,194.44,194.39,8.1067049]
[1739682297869,87.2432,194.44,194.39,8.1697049]
[1739682300767,87.2432,194.44,194.4,8.1067049]
[1739682301158,82.1,194.44,194.4,8.1067049]
[1739682302651,25.1427,194.45,194.4,8.1067049]
[1739682307565,8.1067049,194.43,194.39,0.063]
[1739682307864,8.1067049,194.42,194.39,0.063]
[1739682308069,8.1067049,194.41,194.39,0.063]
[1739682309357,90.2067049,194.4,194.39,0.063]
[1739682309558,95.3507049,194.4,194.39,0.063]
[1739682311466,13.2507049,194.4,194.39,0.063]
[1739682314150,5.144,194.4,194.39,0.063]
[1739682315658,13.2505049,194.41,194.39,0.063]
[1739682315862,5.1438,194.41,194.39,0.063]
[1739682317153,8.1067049,194.43,194.39,0.063]
[1739682317358,20.0,194.4,194.39,0.063]
[1739682318978,8.1067049,194.44,194.39,0.063]
[1739682319158,95.3494049,194.45,194.39,8.1697049]
[1739682320574,20.0,194.42,194.39,8.1697049]
[1739682324669,87.2431,194.44,194.39,8.1697049]
[1739682326482,82.1,194.43,194.39,8.1697049]
[1739682327270,87.2433,194.43,194.39,0.063]
[1739682327468,8.1067049,194.42,194.39,0.063]
[1739682327790,20.0,194.4,194.39,0.063]
[1739682328786,25.144,194.4,194.39,0.063]
[1739682330682,20.0,194.4,194.39,0.063]
[1739682340308,25.144,194.4,194.39,0.063]
[1739682348419,115.3507049,194.4,194.39,0.063]
[1739682353203,33.2507049,194.4,194.39,0.063]
[1739682353408,33.2507049,194.4,194.38,0.063]
[1739682353612,8.1067049,194.39,194.38,0.063]
[1739682355388,13.2509049,194.39,194.38,0.063]
[1739682364339,13.2509049,194.39,194.38,0.0001]
[1739682364914,27.66275343,194.39,194.38,0.0001]
[1739682366720,28.66275343,194.39,194.38,0.0001]
[1739682367301,27.66275343,194.39,194.38,0.0001]
[1739682367725,28.66275343,194.39,194.38,0.0001]
[1739682376031,13.2509049,194.39,194.38,0.0001]
[1739682388945,5.1442,194.39,194.38,0.0001]
[1739682390146,87.2437,194.41,194.38,0.0001]
[1739682390640,20.0,194.39,194.38,0.0001]
[1739682417269,20.03,194.39,194.38,0.0001]
[1739682422568,0.03,194.39,194.38,0.0001]
[1739682424475,82.13,194.39,194.38,0.0001]
[1739682424873,87.2742,194.39,194.38,0.0001]
[1739682425065,82.13,194.39,194.38,0.0001]
[1739682436179,82.13,194.39,194.38,8.1068049]
[1739682438182,82.13,194.39,194.38,0.0001]
[1739682439574,0.03,194.39,194.38,0.0001]
[1739682442980,0.03,194.39,194.38,8.1068049]
[1739682446189,0.03,194.39,194.38,0.0001]
[1739682472799,0.03,194.39,194.38,8.1068049]
[1739682480920,0.03,194.39,194.38,0.0001]
[1739682484620,0.03,194.39,194.38,8.1068049]
[1739682509850,0.03,194.39,194.38,13.2513049]
[1739682524454,0.03,194.39,194.38,26.66315343]
[1739682526575,0.03,194.39,194.38,27.66315343]
[1739682526752,0.03,194.41,194.38,27.66315343]
[1739682526753,0.03,194.41,194.4,14.41184853]
[1739682527070,0.03,194.41,194.4,55.94537303]
[1739682528767,0.03,194.41,194.4,61.08937303]
[1739682532476,0.03,194.41,194.4,61.08937303]
[1739682534461,0.03,194.41,194.4,142.38937303]
[1739682549790,81.75,194.5,194.47,8.1067049]
[1739682552179,86.8914,194.5,194.46,8.1067049]
[1739682556895,86.8914,194.5,194.45,8.1067049]
[1739682559535,86.8914,194.5,194.46,0.063]
[1739682560087,86.9214,194.5,194.46,0.063]
[1739682564214,8.1067049,194.48,194.46,0.063]
[1739682564523,28.1067049,194.47,194.46,0.063]
[1739682565188,33.2488049,194.47,194.46,0.063]
[1739682566481,25.1421,194.47,194.46,0.063]
[1739682569299,106.8921,194.47,194.46,0.063]
[1739682569498,114.9988049,194.47,194.46,0.063]
[1739682572910,33.2488049,194.47,194.46,0.063]
[1739682584122,33.2488049,194.47,194.38,0.0001]
[1739682584123,46.1042049,194.47,194.38,0.0001]
[1739682584426,8.1067049,194.43,194.38,0.0001]
[1739682584819,8.1067049,194.45,194.39,8.1067049]
[1739682585127,8.1067049,194.44,194.38,8.1068049]
[1739682585721,13.2488049,194.47,194.41,8.1067049]
[1739682586026,20.0,194.44,194.41,8.1067049]